[Event "Titled Tuesday Blitz March 14 Late 2023"]
[White "Estrada Nieto, Julian"]
[Black "Larino Nieto, David"]
[WhiteFideId "5101018"]
[BlackFideId "2256444"]
[WhiteElo "2176"]
[BlackElo "2506"]
[Result "0-1"]
[Round "10"]
[TimeControl "180+2"]
[Date "2023.03.14"]
[WhiteClock "0:00:15"]
[BlackClock "0:01:04"]

1. e4 {[%clk 0:03:00]}  d5 {[%clk 0:02:59]} 2. exd5 {[%clk 0:03:00]}  Qxd5 {[%clk 0:03:00]} 3. Nc3 {[%clk 0:02:59]}  Qa5 {[%clk 0:02:59]} 4. d4 {[%clk 0:02:58]}  Nf6 {[%clk 0:02:55]} 5. Nf3 {[%clk 0:02:56]}  Nc6 {[%clk 0:02:55]} 6. Bb5 {[%clk 0:02:55]}  Ne4 {[%clk 0:02:54]} 7. O-O {[%clk 0:02:38]}  Nxc3 {[%clk 0:02:54]} 8. Bxc6+ {[%clk 0:02:38]}  bxc6 {[%clk 0:02:54]} 9. bxc3 {[%clk 0:02:37]}  Bg4 {[%clk 0:02:54]} 10. h3 {[%clk 0:02:31]}  Qxc3 {[%clk 0:02:40]} 11. hxg4 {[%clk 0:02:16]}  Qxa1 {[%clk 0:02:39]} 12. Qd3 {[%clk 0:01:57]}  Qxa2 {[%clk 0:02:32]} 13. c4 {[%clk 0:01:54]}  e6 {[%clk 0:02:26]} 14. Ne5 {[%clk 0:01:37]}  Bd6 {[%clk 0:02:02]} 15. Qe4 {[%clk 0:00:40]}  O-O {[%clk 0:01:58]} 16. Nd7 {[%clk 0:00:31]}  Qxc4 {[%clk 0:01:43]} 17. Nxf8 {[%clk 0:00:30]}  Rxf8 {[%clk 0:01:36]} 18. Be3 {[%clk 0:00:30]}  Qd5 {[%clk 0:01:35]} 19. Qc2 {[%clk 0:00:26]}  a5 {[%clk 0:01:15]} 20. Ra1 {[%clk 0:00:23]}  Ra8 {[%clk 0:01:13]} 21. Ra4 {[%clk 0:00:19]}  Qb5 {[%clk 0:01:10]} 22. g5 {[%clk 0:00:16]}  Rb8 {[%clk 0:01:09]} 23. Rc4 {[%clk 0:00:15]}  Qb1+ {[%clk 0:01:03]} 24. Qxb1 {[%clk 0:00:15]}  Rxb1+ {[%clk 0:01:04]} 0-1


[Site "https://www.chess.com"]

[Event "Titled Tuesday Blitz March 14 Late 2023"]
[White "Ezat, Mohamed"]
[Black "Manelyuk, Daniil"]
[WhiteFideId "10600906"]
[BlackFideId "44173920"]
[WhiteElo "2386"]
[BlackElo "2259"]
[Result "1-0"]
[Round "10"]
[TimeControl "180+2"]
[Date "2023.03.14"]
[WhiteClock "0:02:14"]
[BlackClock "0:00:01"]

1. e4 {[%clk 0:03:00]}  e6 {[%clk 0:02:57]} 2. Nf3 {[%clk 0:03:00]}  d5 {[%clk 0:02:57]} 3. exd5 {[%clk 0:03:01]}  Qxd5 {[%clk 0:02:57]} 4. d4 {[%clk 0:03:01]}  Nf6 {[%clk 0:02:56]} 5. Nc3 {[%clk 0:03:01]}  Qd8 {[%clk 0:02:56]} 6. a3 {[%clk 0:02:59]}  Bd6 {[%clk 0:02:55]} 7. Bd3 {[%clk 0:02:59]}  O-O {[%clk 0:02:55]} 8. Qe2 {[%clk 0:02:56]}  b6 {[%clk 0:02:53]} 9. Bg5 {[%clk 0:02:56]}  Bb7 {[%clk 0:02:53]} 10. O-O-O {[%clk 0:02:56]}  Nbd7 {[%clk 0:02:53]} 11. Ne5 {[%clk 0:02:55]}  Qe7 {[%clk 0:02:35]} 12. Nxd7 {[%clk 0:02:43]}  Qxd7 {[%clk 0:02:36]} 13. Bxf6 {[%clk 0:02:41]}  gxf6 {[%clk 0:02:37]} 14. Bxh7+ {[%clk 0:02:41]}  Kxh7 {[%clk 0:02:34]} 15. Qh5+ {[%clk 0:02:39]}  Kg7 {[%clk 0:01:26]} 16. Qg4+ {[%clk 0:02:35]}  Kh7 {[%clk 0:01:26]} 17. Rd3 {[%clk 0:02:31]}  Bxg2 {[%clk 0:01:26]} 18. Rh3+ {[%clk 0:02:17]}  Bxh3 {[%clk 0:01:20]} 19. Qxh3+ {[%clk 0:02:16]}  Kg6 {[%clk 0:00:09]} 20. Rg1+ {[%clk 0:02:14]}  Bg3 {[%clk 0:00:01]} 21. Rxg3# {[%clk 0:02:14]} 1-0


[Site "https://www.chess.com"]

[Event "Titled Tuesday Blitz March 14 Late 2023"]
[White "Roebers, Eline"]
[Black "Piesik, Piotr"]
[WhiteFideId "1058401"]
[BlackFideId "1136194"]
[WhiteElo "2543"]
[BlackElo "2311"]
[Result "0-1"]
[Round "10"]
[TimeControl "180+2"]
[Date "2023.03.14"]
[WhiteClock "0:00:01"]
[BlackClock "0:01:26"]

1. e4 {[%clk 0:03:00]}  g6 {[%clk 0:02:59]} 2. d4 {[%clk 0:03:00]}  Bg7 {[%clk 0:03:00]} 3. f4 {[%clk 0:03:00]}  c6 {[%clk 0:03:00]} 4. h3 {[%clk 0:02:50]}  d5 {[%clk 0:03:00]} 5. e5 {[%clk 0:02:50]}  h5 {[%clk 0:03:00]} 6. g3 {[%clk 0:02:49]}  Nh6 {[%clk 0:02:59]} 7. Be3 {[%clk 0:02:49]}  Nf5 {[%clk 0:02:58]} 8. Bf2 {[%clk 0:02:49]}  b6 {[%clk 0:02:41]} 9. Nf3 {[%clk 0:02:47]}  Ba6 {[%clk 0:02:40]} 10. Bxa6 {[%clk 0:02:37]}  Nxa6 {[%clk 0:02:41]} 11. c4 {[%clk 0:02:36]}  dxc4 {[%clk 0:02:37]} 12. Qa4 {[%clk 0:02:28]}  Qd5 {[%clk 0:02:34]} 13. Nbd2 {[%clk 0:02:07]}  Nc7 {[%clk 0:02:34]} 14. Qxc4 {[%clk 0:02:03]}  Qxc4 {[%clk 0:02:25]} 15. Nxc4 {[%clk 0:02:04]}  Nd5 {[%clk 0:02:24]} 16. h4 {[%clk 0:01:55]}  e6 {[%clk 0:02:21]} 17. Rc1 {[%clk 0:01:51]}  Bf8 {[%clk 0:02:21]} 18. a3 {[%clk 0:01:50]}  Be7 {[%clk 0:02:17]} 19. Ke2 {[%clk 0:01:50]}  O-O {[%clk 0:02:15]} 20. Nfd2 {[%clk 0:01:48]}  Rfd8 {[%clk 0:02:11]} 21. Ne4 {[%clk 0:01:47]}  Nc7 {[%clk 0:02:11]} 22. Rhd1 {[%clk 0:01:39]}  Nb5 {[%clk 0:02:11]} 23. Ncd6 {[%clk 0:01:34]}  Nbxd6 {[%clk 0:02:08]} 24. exd6 {[%clk 0:01:32]}  Nxd6 {[%clk 0:02:07]} 25. Nd2 {[%clk 0:01:21]}  Rac8 {[%clk 0:02:06]} 26. Rc2 {[%clk 0:01:18]}  Nf5 {[%clk 0:02:03]} 27. Nf3 {[%clk 0:01:17]}  Bf6 {[%clk 0:01:57]} 28. Rdc1 {[%clk 0:01:15]}  Rd6 {[%clk 0:01:54]} 29. b4 {[%clk 0:01:12]}  Kf8 {[%clk 0:01:42]} 30. b5 {[%clk 0:00:58]}  Ne7 {[%clk 0:01:42]} 31. Ne5 {[%clk 0:00:52]}  Bxe5 {[%clk 0:01:42]} 32. dxe5 {[%clk 0:00:51]}  Rd7 {[%clk 0:01:42]} 33. bxc6 {[%clk 0:00:27]}  Rdc7 {[%clk 0:01:41]} 34. a4 {[%clk 0:00:20]}  Rxc6 {[%clk 0:01:41]} 35. Rxc6 {[%clk 0:00:19]}  Rxc6 {[%clk 0:01:42]} 36. Rb1 {[%clk 0:00:17]}  Nd5 {[%clk 0:01:41]} 37. Rb3 {[%clk 0:00:11]}  a5 {[%clk 0:01:40]} 38. Kd2 {[%clk 0:00:08]}  Ke8 {[%clk 0:01:40]} 39. Bd4 {[%clk 0:00:06]}  Kd7 {[%clk 0:01:40]} 40. Rb5 {[%clk 0:00:05]}  Kc7 {[%clk 0:01:39]} 41. Kd3 {[%clk 0:00:05]}  Rc1 {[%clk 0:01:38]} 42. Rb2 {[%clk 0:00:03]}  Kc6 {[%clk 0:01:36]} 43. Ke4 {[%clk 0:00:03]}  Rc4 {[%clk 0:01:34]} 44. Kd3 {[%clk 0:00:01]}  Rxa4 {[%clk 0:01:32]} 45. Rc2+ {[%clk 0:00:01]}  Kb7 {[%clk 0:01:32]} 46. Rb2 {[%clk 0:00:01]}  Ra3+ {[%clk 0:01:31]} 47. Ke4 {[%clk 0:00:01]}  Rxg3 {[%clk 0:01:27]} 48. Rb5 {[%clk 0:00:01]}  Rg4 {[%clk 0:01:26]} 0-1


[Site "https://www.chess.com"]

[Event "Titled Tuesday Blitz March 14 Late 2023"]
[White "Filgueira, Hernan"]
[Black "Kozin, Yuri"]
[WhiteFideId "101770"]
[BlackFideId "4129920"]
[WhiteElo "2363"]
[BlackElo "2518"]
[Result "1-0"]
[Round "10"]
[TimeControl "180+2"]
[Date "2023.03.14"]
[WhiteClock "0:01:38"]
[BlackClock "0:01:29"]

1. c4 {[%clk 0:02:59]}  c5 {[%clk 0:02:42]} 2. Nf3 {[%clk 0:02:58]}  Nf6 {[%clk 0:02:41]} 3. g3 {[%clk 0:02:57]}  e6 {[%clk 0:02:42]} 4. d4 {[%clk 0:02:56]}  cxd4 {[%clk 0:02:41]} 5. Nxd4 {[%clk 0:02:55]}  d6 {[%clk 0:02:42]} 6. Bg2 {[%clk 0:02:54]}  a6 {[%clk 0:02:42]} 7. O-O {[%clk 0:02:54]}  Be7 {[%clk 0:02:42]} 8. Nc3 {[%clk 0:02:52]}  Qc7 {[%clk 0:02:43]} 9. b3 {[%clk 0:02:48]}  O-O {[%clk 0:02:43]} 10. Bb2 {[%clk 0:02:48]}  Nbd7 {[%clk 0:02:41]} 11. Rc1 {[%clk 0:02:47]}  Ne5 {[%clk 0:02:41]} 12. e3 {[%clk 0:02:45]}  Bd7 {[%clk 0:02:41]} 13. Qe2 {[%clk 0:02:41]}  Rac8 {[%clk 0:02:41]} 14. f4 {[%clk 0:02:39]}  Ng6 {[%clk 0:02:40]} 15. f5 {[%clk 0:02:35]}  Ne5 {[%clk 0:02:30]} 16. fxe6 {[%clk 0:02:35]}  fxe6 {[%clk 0:02:29]} 17. Bh3 {[%clk 0:02:35]}  Qb6 {[%clk 0:01:56]} 18. Bxe6+ {[%clk 0:02:31]}  Kh8 {[%clk 0:01:52]} 19. Bxd7 {[%clk 0:02:31]}  Nexd7 {[%clk 0:01:52]} 20. Ne6 {[%clk 0:02:16]}  Rfe8 {[%clk 0:01:45]} 21. Nd5 {[%clk 0:02:12]}  Qa7 {[%clk 0:01:34]} 22. Nxg7 {[%clk 0:01:48]}  Kxg7 {[%clk 0:01:33]} 23. Qg4+ {[%clk 0:01:41]}  Kh8 {[%clk 0:01:29]} 24. Qxd7 {[%clk 0:01:38]} 1-0


[Site "https://www.chess.com"]

[Event "Titled Tuesday Blitz March 14 Late 2023"]
[White "Fiorito, Joaquin"]
[Black "Fan_Of_Chucky"]
[WhiteFideId "180173"]
[WhiteElo "2157"]
[BlackElo "2360"]
[Result "1-0"]
[Round "10"]
[TimeControl "180+2"]
[Date "2023.03.14"]
[WhiteClock "0:00:58"]
[BlackClock "0:00:05"]

1. d4 {[%clk 0:03:00]}  Nf6 {[%clk 0:02:58]} 2. Nc3 {[%clk 0:03:00]}  c5 {[%clk 0:02:59]} 3. d5 {[%clk 0:03:00]}  e6 {[%clk 0:02:37]} 4. e4 {[%clk 0:02:59]}  d6 {[%clk 0:02:35]} 5. Nf3 {[%clk 0:02:52]}  exd5 {[%clk 0:02:31]} 6. exd5 {[%clk 0:02:53]}  Be7 {[%clk 0:02:27]} 7. Bd3 {[%clk 0:02:52]}  O-O {[%clk 0:02:25]} 8. O-O {[%clk 0:02:51]}  Bg4 {[%clk 0:02:20]} 9. h3 {[%clk 0:02:51]}  Bh5 {[%clk 0:02:19]} 10. Bf4 {[%clk 0:02:48]}  a6 {[%clk 0:02:11]} 11. a4 {[%clk 0:02:48]}  Bxf3 {[%clk 0:02:05]} 12. Qxf3 {[%clk 0:02:47]}  Nbd7 {[%clk 0:02:02]} 13. Rfe1 {[%clk 0:02:46]}  g6 {[%clk 0:01:58]} 14. Re2 {[%clk 0:02:41]}  Re8 {[%clk 0:01:55]} 15. Rae1 {[%clk 0:02:40]}  Bf8 {[%clk 0:01:52]} 16. Bg5 {[%clk 0:02:35]}  Rxe2 {[%clk 0:01:45]} 17. Rxe2 {[%clk 0:02:36]}  h6 {[%clk 0:01:40]} 18. Bh4 {[%clk 0:02:34]}  Bg7 {[%clk 0:01:36]} 19. Bg3 {[%clk 0:02:28]}  Qc7 {[%clk 0:01:34]} 20. Re1 {[%clk 0:02:01]}  Re8 {[%clk 0:01:28]} 21. Rxe8+ {[%clk 0:02:00]}  Nxe8 {[%clk 0:01:28]} 22. Ne4 {[%clk 0:01:58]}  Bxb2 {[%clk 0:01:24]} 23. c3 {[%clk 0:01:52]}  Bc1 {[%clk 0:01:17]} 24. Qe2 {[%clk 0:01:44]}  Kg7 {[%clk 0:01:16]} 25. Qe1 {[%clk 0:01:40]}  c4 {[%clk 0:01:10]} 26. Bc2 {[%clk 0:01:37]}  Ba3 {[%clk 0:01:07]} 27. h4 {[%clk 0:01:33]}  h5 {[%clk 0:01:04]} 28. Ng5 {[%clk 0:01:20]}  Nef6 {[%clk 0:00:58]} 29. Qe7 {[%clk 0:01:18]}  Kh8 {[%clk 0:00:35]} 30. Nxf7+ {[%clk 0:01:14]}  Kg8 {[%clk 0:00:30]} 31. Nh6+ {[%clk 0:01:09]}  Kh8 {[%clk 0:00:27]} 32. Bxg6 {[%clk 0:01:08]}  Qc8 {[%clk 0:00:23]} 33. Nf7+ {[%clk 0:01:06]}  Kg8 {[%clk 0:00:21]} 34. Nxd6 {[%clk 0:01:05]}  Qf8 {[%clk 0:00:16]} 35. Qe6+ {[%clk 0:01:04]}  Kh8 {[%clk 0:00:12]} 36. Nxc4 {[%clk 0:00:59]}  Qg8 {[%clk 0:00:10]} 37. Qxg8+ {[%clk 0:00:59]}  Kxg8 {[%clk 0:00:08]} 38. Nxa3 {[%clk 0:00:59]}  Kg7 {[%clk 0:00:07]} 39. Bf5 {[%clk 0:00:59]}  Nc5 {[%clk 0:00:05]} 40. Be5 {[%clk 0:00:58]} 1-0


[Site "https://www.chess.com"]

[Event "Titled Tuesday Blitz March 14 Late 2023"]
[White "Munoz, Francisco Javier"]
[Black "Preotu, Razvan"]
[WhiteFideId "128368"]
[BlackFideId "2613280"]
[WhiteElo "2383"]
[BlackElo "2407"]
[Result "0-1"]
[Round "10"]
[TimeControl "180+2"]
[Date "2023.03.14"]
[WhiteClock "0:00:06"]
[BlackClock "0:00:08"]

1. e4 {[%clk 0:02:55]}  c5 {[%clk 0:02:59]} 2. Nc3 {[%clk 0:02:55]}  d6 {[%clk 0:02:59]} 3. f4 {[%clk 0:02:56]}  g6 {[%clk 0:02:58]} 4. Nf3 {[%clk 0:02:56]}  Bg7 {[%clk 0:02:58]} 5. Bb5+ {[%clk 0:02:56]}  Bd7 {[%clk 0:02:58]} 6. Bxd7+ {[%clk 0:02:57]}  Qxd7 {[%clk 0:02:57]} 7. O-O {[%clk 0:02:58]}  Nc6 {[%clk 0:02:58]} 8. d3 {[%clk 0:02:55]}  f5 {[%clk 0:02:57]} 9. exf5 {[%clk 0:02:48]}  gxf5 {[%clk 0:02:55]} 10. Nd5 {[%clk 0:02:36]}  e6 {[%clk 0:02:53]} 11. Re1 {[%clk 0:02:35]}  O-O-O {[%clk 0:02:53]} 12. Ne3 {[%clk 0:02:34]}  Nf6 {[%clk 0:02:43]} 13. Rb1 {[%clk 0:02:33]}  h5 {[%clk 0:02:42]} 14. a3 {[%clk 0:02:32]}  h4 {[%clk 0:02:39]} 15. b4 {[%clk 0:02:31]}  h3 {[%clk 0:02:31]} 16. g3 {[%clk 0:02:30]}  Nd5 {[%clk 0:01:55]} 17. Nxd5 {[%clk 0:02:28]}  exd5 {[%clk 0:01:56]} 18. Bd2 {[%clk 0:02:13]}  Rde8 {[%clk 0:01:55]} 19. c3 {[%clk 0:02:09]}  c4 {[%clk 0:01:27]} 20. Qc2 {[%clk 0:01:16]}  Kb8 {[%clk 0:01:27]} 21. Qa2 {[%clk 0:01:14]}  Qf7 {[%clk 0:00:45]} 22. Ng5 {[%clk 0:00:53]}  Qh5 {[%clk 0:00:45]} 23. dxc4 {[%clk 0:00:42]}  d4 {[%clk 0:00:17]} 24. Qc2 {[%clk 0:00:38]}  Bf6 {[%clk 0:00:13]} 25. Qxf5 {[%clk 0:00:28]}  Bxg5 {[%clk 0:00:12]} 26. fxg5 {[%clk 0:00:26]}  Ne5 {[%clk 0:00:12]} 27. Rf1 {[%clk 0:00:13]}  Qe2 {[%clk 0:00:11]} 28. Rf2 {[%clk 0:00:11]}  Qxc4 {[%clk 0:00:08]} 29. Rc1 {[%clk 0:00:03]}  Nd3 {[%clk 0:00:08]} 30. Rcf1 {[%clk 0:00:01]}  dxc3 {[%clk 0:00:07]} 31. Bf4 {[%clk 0:00:01]}  c2 {[%clk 0:00:05]} 32. Bxd6+ {[%clk 0:00:02]}  Ka8 {[%clk 0:00:06]} 33. Rf3 {[%clk 0:00:02]}  c1=Q {[%clk 0:00:05]} 34. Qxd3 {[%clk 0:00:03]}  Qxd3 {[%clk 0:00:04]} 35. Rxd3 {[%clk 0:00:04]}  Qxg5 {[%clk 0:00:04]} 36. Bf4 {[%clk 0:00:03]}  Qg6 {[%clk 0:00:04]} 37. Rfd1 {[%clk 0:00:04]}  Qc6 {[%clk 0:00:04]} 38. Rd5 {[%clk 0:00:04]}  a6 {[%clk 0:00:04]} 39. a4 {[%clk 0:00:03]}  Qc2 {[%clk 0:00:04]} 40. R5d2 {[%clk 0:00:03]}  Qe4 {[%clk 0:00:04]} 41. b5 {[%clk 0:00:03]}  Rhg8 {[%clk 0:00:04]} 42. bxa6 {[%clk 0:00:02]}  Qxf4 {[%clk 0:00:04]} 43. axb7+ {[%clk 0:00:03]}  Kb8 {[%clk 0:00:04]} 44. Rd8+ {[%clk 0:00:02]}  Rxd8 {[%clk 0:00:04]} 45. Rxd8+ {[%clk 0:00:03]}  Rxd8 {[%clk 0:00:04]} 46. gxf4 {[%clk 0:00:04]}  Rd2 {[%clk 0:00:04]} 47. f5 {[%clk 0:00:04]}  Kxb7 {[%clk 0:00:05]} 48. f6 {[%clk 0:00:04]}  Rg2+ {[%clk 0:00:05]} 49. Kf1 {[%clk 0:00:04]}  Rg6 {[%clk 0:00:06]} 50. f7 {[%clk 0:00:04]}  Rf6+ {[%clk 0:00:06]} 51. Ke2 {[%clk 0:00:05]}  Rxf7 {[%clk 0:00:07]} 52. Ke3 {[%clk 0:00:06]}  Ka6 {[%clk 0:00:08]} 0-1


[Site "https://www.chess.com"]

[Event "Titled Tuesday Blitz March 14 Late 2023"]
[White "Sanchez Alvares, Kelvin Antonio"]
[Black "Fiorito, Francisco"]
[WhiteFideId "3906680"]
[BlackFideId "180165"]
[WhiteElo "2217"]
[BlackElo "2341"]
[Result "1-0"]
[Round "10"]
[TimeControl "180+2"]
[Date "2023.03.14"]
[WhiteClock "0:01:17"]
[BlackClock "0:00:01"]

1. e4 {[%clk 0:03:00]}  c5 {[%clk 0:02:59]} 2. Nf3 {[%clk 0:02:58]}  Nc6 {[%clk 0:02:58]} 3. d4 {[%clk 0:02:58]}  cxd4 {[%clk 0:02:59]} 4. Nxd4 {[%clk 0:02:59]}  g6 {[%clk 0:02:59]} 5. c4 {[%clk 0:02:58]}  Nf6 {[%clk 0:02:56]} 6. Nc3 {[%clk 0:02:58]}  d6 {[%clk 0:02:56]} 7. f3 {[%clk 0:02:56]}  Nxd4 {[%clk 0:02:54]} 8. Qxd4 {[%clk 0:02:56]}  Bg7 {[%clk 0:02:55]} 9. Be3 {[%clk 0:02:56]}  O-O {[%clk 0:02:55]} 10. Qd2 {[%clk 0:02:57]}  a5 {[%clk 0:02:56]} 11. Be2 {[%clk 0:02:57]}  a4 {[%clk 0:02:56]} 12. Rc1 {[%clk 0:02:57]}  Be6 {[%clk 0:02:55]} 13. Nb5 {[%clk 0:02:48]}  Qd7 {[%clk 0:02:42]} 14. O-O {[%clk 0:02:46]}  Rfc8 {[%clk 0:02:41]} 15. Rfd1 {[%clk 0:02:43]}  Qd8 {[%clk 0:02:30]} 16. Bd4 {[%clk 0:02:37]}  Nd7 {[%clk 0:02:27]} 17. Bxg7 {[%clk 0:02:35]}  Kxg7 {[%clk 0:02:28]} 18. Qd4+ {[%clk 0:02:35]}  Kg8 {[%clk 0:02:26]} 19. f4 {[%clk 0:02:35]}  Qb6 {[%clk 0:02:25]} 20. Kf2 {[%clk 0:02:33]}  Qxd4+ {[%clk 0:02:23]} 21. Nxd4 {[%clk 0:02:33]}  Nc5 {[%clk 0:02:19]} 22. Ke3 {[%clk 0:02:31]}  Bd7 {[%clk 0:02:17]} 23. h4 {[%clk 0:02:19]}  e5 {[%clk 0:02:13]} 24. fxe5 {[%clk 0:02:17]}  dxe5 {[%clk 0:02:14]} 25. Nb5 {[%clk 0:02:10]}  Bxb5 {[%clk 0:02:09]} 26. cxb5 {[%clk 0:02:10]}  Ne6 {[%clk 0:02:09]} 27. Bc4 {[%clk 0:02:10]}  Nd4 {[%clk 0:02:07]} 28. Bd5 {[%clk 0:02:07]}  Nxb5 {[%clk 0:01:26]} 29. Bxb7 {[%clk 0:02:04]}  Rxc1 {[%clk 0:01:26]} 30. Rxc1 {[%clk 0:02:04]}  Ra7 {[%clk 0:01:26]} 31. Rc8+ {[%clk 0:01:55]}  Kg7 {[%clk 0:01:26]} 32. Bd5 {[%clk 0:01:53]}  Nd4 {[%clk 0:01:25]} 33. Ra8 {[%clk 0:01:44]}  Rc7 {[%clk 0:00:23]} 34. Rxa4 {[%clk 0:01:42]}  Rc2 {[%clk 0:00:24]} 35. Rb4 {[%clk 0:01:37]}  Rxg2 {[%clk 0:00:22]} 36. Rb7 {[%clk 0:01:36]}  Rg3+ {[%clk 0:00:21]} 37. Kf2 {[%clk 0:01:27]}  Rf3+ {[%clk 0:00:21]} 38. Kg2 {[%clk 0:01:27]}  h5 {[%clk 0:00:16]} 39. a4 {[%clk 0:01:27]}  Rf4 {[%clk 0:00:05]} 40. a5 {[%clk 0:01:25]}  Rg4+ {[%clk 0:00:06]} 41. Kf2 {[%clk 0:01:25]}  Rf4+ {[%clk 0:00:05]} 42. Ke3 {[%clk 0:01:23]}  Rf3+ {[%clk 0:00:03]} 43. Kd2 {[%clk 0:01:23]}  Rf2+ {[%clk 0:00:04]} 44. Ke1 {[%clk 0:01:23]}  Rh2 {[%clk 0:00:03]} 45. a6 {[%clk 0:01:19]}  Rh1+ {[%clk 0:00:01]} 46. Kf2 {[%clk 0:01:17]} 1-0


[Site "https://www.chess.com"]

[Event "Titled Tuesday Blitz March 14 Late 2023"]
[White "Klose, Eli"]
[Black "Jovic, Stanoje"]
[WhiteFideId "16242955"]
[BlackFideId "905020"]
[WhiteElo "2615"]
[BlackElo "2236"]
[Result "1-0"]
[Round "10"]
[TimeControl "180+2"]
[Date "2023.03.14"]
[WhiteClock "0:01:45"]
[BlackClock "0:00:03"]

1. e4 {[%clk 0:02:54]}  c6 {[%clk 0:03:00]} 2. Nc3 {[%clk 0:02:48]}  d5 {[%clk 0:03:00]} 3. d4 {[%clk 0:02:49]}  dxe4 {[%clk 0:02:58]} 4. Nxe4 {[%clk 0:02:50]}  Nf6 {[%clk 0:02:58]} 5. Nxf6+ {[%clk 0:02:49]}  exf6 {[%clk 0:02:59]} 6. Nf3 {[%clk 0:02:49]}  Bd6 {[%clk 0:02:59]} 7. Bd3 {[%clk 0:02:49]}  O-O {[%clk 0:02:59]} 8. Be3 {[%clk 0:02:49]}  Re8 {[%clk 0:02:57]} 9. Qd2 {[%clk 0:02:49]}  Bg4 {[%clk 0:02:52]} 10. O-O-O {[%clk 0:02:49]}  Bxf3 {[%clk 0:02:52]} 11. gxf3 {[%clk 0:02:49]}  b5 {[%clk 0:02:50]} 12. Rdg1 {[%clk 0:02:49]}  Nd7 {[%clk 0:02:40]} 13. h4 {[%clk 0:02:49]}  Nb6 {[%clk 0:02:33]} 14. Bh6 {[%clk 0:02:40]}  g6 {[%clk 0:02:18]} 15. h5 {[%clk 0:02:40]}  g5 {[%clk 0:02:07]} 16. f4 {[%clk 0:02:27]}  Nd5 {[%clk 0:01:14]} 17. fxg5 {[%clk 0:02:25]}  f5 {[%clk 0:01:10]} 18. g6 {[%clk 0:02:23]}  hxg6 {[%clk 0:00:59]} 19. hxg6 {[%clk 0:02:22]}  f6 {[%clk 0:00:13]} 20. Bxf5 {[%clk 0:02:08]}  Qc7 {[%clk 0:00:10]} 21. g7 {[%clk 0:02:07]}  Nf4 {[%clk 0:00:05]} 22. Bh7+ {[%clk 0:02:01]}  Kf7 {[%clk 0:00:04]} 23. g8=Q+ {[%clk 0:01:45]}  Rxg8 {[%clk 0:00:04]} 24. Bxg8+ {[%clk 0:01:46]}  Rxg8 {[%clk 0:00:02]} 25. Rxg8 {[%clk 0:01:46]}  Kxg8 {[%clk 0:00:03]} 26. Rg1+ {[%clk 0:01:46]}  Kf7 {[%clk 0:00:03]} 27. Rg7+ {[%clk 0:01:45]} 1-0


[Site "https://www.chess.com"]

[Event "Titled Tuesday Blitz March 14 Late 2023"]
[White "Romkachess"]
[Black "Dinu, Dumitru-Daniel"]
[BlackFideId "1208403"]
[WhiteElo "2559"]
[BlackElo "2240"]
[Result "1-0"]
[Round "10"]
[TimeControl "180+2"]
[Date "2023.03.14"]
[WhiteClock "0:01:32"]
[BlackClock "0:01:03"]

1. e4 {[%clk 0:03:00]}  c5 {[%clk 0:02:59]} 2. Nf3 {[%clk 0:03:00]}  e6 {[%clk 0:02:59]} 3. d4 {[%clk 0:03:00]}  cxd4 {[%clk 0:03:00]} 4. Nxd4 {[%clk 0:03:00]}  Nc6 {[%clk 0:03:00]} 5. Nxc6 {[%clk 0:02:58]}  bxc6 {[%clk 0:03:00]} 6. Bd3 {[%clk 0:02:58]}  d5 {[%clk 0:02:58]} 7. O-O {[%clk 0:02:53]}  Nf6 {[%clk 0:02:58]} 8. exd5 {[%clk 0:02:52]}  cxd5 {[%clk 0:02:58]} 9. c4 {[%clk 0:02:52]}  Be7 {[%clk 0:02:56]} 10. Nc3 {[%clk 0:02:52]}  O-O {[%clk 0:02:55]} 11. Bg5 {[%clk 0:02:52]}  Bb7 {[%clk 0:02:50]} 12. cxd5 {[%clk 0:02:49]}  Nxd5 {[%clk 0:02:47]} 13. Bxe7 {[%clk 0:02:43]}  Qxe7 {[%clk 0:02:46]} 14. Nxd5 {[%clk 0:02:36]}  Bxd5 {[%clk 0:02:47]} 15. Re1 {[%clk 0:02:32]}  Rfd8 {[%clk 0:02:46]} 16. Qe2 {[%clk 0:02:25]}  Qg5 {[%clk 0:02:32]} 17. Be4 {[%clk 0:02:15]}  Rac8 {[%clk 0:02:25]} 18. Bxd5 {[%clk 0:02:12]}  Rxd5 {[%clk 0:02:23]} 19. Rad1 {[%clk 0:02:13]}  Rcd8 {[%clk 0:02:20]} 20. h3 {[%clk 0:02:09]}  h6 {[%clk 0:02:17]} 21. Rxd5 {[%clk 0:02:07]}  Qxd5 {[%clk 0:02:15]} 22. b3 {[%clk 0:02:02]}  Qa5 {[%clk 0:02:07]} 23. Rc1 {[%clk 0:01:41]}  Rd2 {[%clk 0:01:29]} 24. Rc8+ {[%clk 0:01:39]}  Kh7 {[%clk 0:01:28]} 25. Qe4+ {[%clk 0:01:38]}  g6 {[%clk 0:01:26]} 26. Qf4 {[%clk 0:01:38]}  Rd7 {[%clk 0:01:03]} 27. Qf6 {[%clk 0:01:32]} 1-0


[Site "https://www.chess.com"]

[Event "Titled Tuesday Blitz March 14 Late 2023"]
[White "Mirimanian, Hayk"]
[Black "Harish, Neeraj"]
[WhiteFideId "4700180"]
[BlackFideId "30958130"]
[WhiteElo "2280"]
[BlackElo "1963"]
[Result "1-0"]
[Round "10"]
[TimeControl "180+2"]
[Date "2023.03.14"]
[WhiteClock "0:00:36"]
[BlackClock "0:00:01"]

1. e4 {[%clk 0:02:35]}  c5 {[%clk 0:02:58]} 2. Nf3 {[%clk 0:02:31]}  Nc6 {[%clk 0:02:57]} 3. d4 {[%clk 0:02:28]}  cxd4 {[%clk 0:02:57]} 4. Nxd4 {[%clk 0:02:29]}  e5 {[%clk 0:02:57]} 5. Nb5 {[%clk 0:02:25]}  d6 {[%clk 0:02:57]} 6. c4 {[%clk 0:02:20]}  Be6 {[%clk 0:02:56]} 7. N1c3 {[%clk 0:02:10]}  a6 {[%clk 0:02:51]} 8. Na3 {[%clk 0:02:10]}  g6 {[%clk 0:02:50]} 9. Nc2 {[%clk 0:02:05]}  Bg7 {[%clk 0:02:49]} 10. Be3 {[%clk 0:01:59]}  Nf6 {[%clk 0:02:47]} 11. Be2 {[%clk 0:01:57]}  O-O {[%clk 0:02:47]} 12. O-O {[%clk 0:01:49]}  Rc8 {[%clk 0:02:46]} 13. Qd2 {[%clk 0:01:47]}  Ne7 {[%clk 0:02:42]} 14. Na3 {[%clk 0:01:31]}  Nc6 {[%clk 0:02:37]} 15. Rfd1 {[%clk 0:01:29]}  Nd4 {[%clk 0:02:33]} 16. f3 {[%clk 0:01:25]}  Nh5 {[%clk 0:02:00]} 17. Bf1 {[%clk 0:01:24]}  Nf4 {[%clk 0:01:27]} 18. Nd5 {[%clk 0:01:21]}  Nxd5 {[%clk 0:01:19]} 19. cxd5 {[%clk 0:01:21]}  Bd7 {[%clk 0:01:19]} 20. Qb4 {[%clk 0:01:20]}  b5 {[%clk 0:01:11]} 21. Qxd6 {[%clk 0:01:16]}  f5 {[%clk 0:00:53]} 22. Rac1 {[%clk 0:01:13]}  fxe4 {[%clk 0:00:50]} 23. Rxc8 {[%clk 0:01:09]}  Qxc8 {[%clk 0:00:47]} 24. Rc1 {[%clk 0:01:10]}  Qe8 {[%clk 0:00:38]} 25. fxe4 {[%clk 0:01:06]}  Qf7 {[%clk 0:00:35]} 26. Bd3 {[%clk 0:00:51]}  Bh3 {[%clk 0:00:09]} 27. Rf1 {[%clk 0:00:48]}  Qe8 {[%clk 0:00:02]} 28. Rxf8+ {[%clk 0:00:41]}  Bxf8 {[%clk 0:00:02]} 29. Qxa6 {[%clk 0:00:41]}  Bg4 {[%clk 0:00:01]} 30. Nxb5 {[%clk 0:00:37]}  Nxb5 {[%clk 0:00:01]} 31. Qxb5 {[%clk 0:00:37]}  Qc8 {[%clk 0:00:01]} 32. Qc4 {[%clk 0:00:36]}  Qb8 {[%clk 0:00:01]} 33. h3 {[%clk 0:00:36]} 1-0


[Site "https://www.chess.com"]